[Event "NOR-ch Various 2019"]
[Site "Larvik"]
[Date "2019.07.11"]
[Round "7.12"]
[White "Tobiassen, Richard"]
[Black "Lund, Scott Macody"]
[Result "1/2-1/2"]
[ECO "A48"]
[WhiteElo "1321"]
[BlackElo "1389"]
[Annotator "NA"]
[PlyCount "41"]
[EventDate "2019.07.06"]
[EventType "swiss"]
[EventCountry "NOR"]
[SourceTitle "playchess.com"]
[Source "ChessBase"]
[SourceQuality "1"]
[TimeControl "40/5400+30:1800+30"]

1. d4 {[%emt 0:00:13]} Nf6 {[%emt 0:00:00]} 2. Bf4 {[%emt 0:00:12]} g6 {[%emt 0:02:30]} 3. e3 {[%emt 0:00:16]} Bg7 {[%emt 0:00:46]} 4. Nf3 {[%emt 0:00:16]} d6 {[%emt 0:00:39]} 5. Be2 {[%emt 0:01:46]} O-O {[%emt 0:00:18]} 6. O-O {[%emt 0:00:10]} Nh5 {[%emt 0:07:12]} 7. Nbd2 {[%emt 0:02:15]} Nxf4 {[%emt 0:01:51]} 8. exf4 {[%emt 0:00:56]} c5 {[%emt 0:08:09]} 9. c3 {[%emt 0:11:18]} cxd4 {[%emt 0:02:40]} 10. Nxd4 {[%emt 0:01:36]} Nc6 {[%emt 0:02:12]} 11. N2f3 {[%emt 0:00:41]} Qd7 {[%emt 0:09:27]} 12. Bb5 {[%emt 0:04:10]} a6 {[%emt 0:00:38]} 13. Qa4 {[%emt 0:00:15]} Qc7 {[%emt 0:23:01]} 14. Nxc6 {[%emt 0:05:35]} bxc6 {[%emt 0:00:53]} 15. Bxc6 {[%emt 0:00:17]} Rb8 {[%emt 0:03:40]} 16. Rab1 {[%emt 0:00:24]} Bf5 {[%emt 0:01:13]} 17. Be4 {[%emt 0:01:36]} Bxe4 {[%emt 0:00:58]} 18. Qxe4 {[%emt 0:00:12]} e6 {[%emt 0:01:33]} 19. Qd3 {[%emt 0:03:39]} d5 {[%emt 0:04:22]} 20. g3 {[%emt 0:03:18]} Qa5 {[%emt 0:01:09]} 21. a3 {[%emt 0:02:19]} 1/2-1/2

[Event "NOR-ch Various 2019"]
[Site "Larvik"]
[Date "2019.07.11"]
[Round "7.14"]
[White "Ribe, Kristin"]
[Black "Schneider, Andrea"]
[Result "1/2-1/2"]
[ECO "A51"]
[WhiteElo "1118"]
[BlackElo "1132"]
[Annotator "NA"]
[PlyCount "143"]
[EventDate "2019.07.06"]
[EventType "swiss"]
[EventCountry "NOR"]
[SourceTitle "playchess.com"]
[Source "ChessBase"]
[SourceQuality "1"]
[TimeControl "40/5400+30:1800+30"]

1. d4 {[%emt 0:00:00]} Nf6 {[%emt 0:00:00]} 2. c4 {[%emt 0:00:00]} e5 {[%emt 0:00:00]} 3. Nc3 {[%emt 0:00:15]} exd4 {[%emt 0:00:24]} 4. Qxd4 {[%emt 0:00:08]} Nc6 {[%emt 0:00:10]} 5. Qd1 {[%emt 0:00:18]} Bb4 {[%emt 0:01:17]} 6. e3 {[%emt 0:02:17]} d6 {[%emt 0:02:58]} 7. Bd3 {[%emt 0:00:15]} Be6 {[%emt 0:01:47]} 8. Nf3 {[%emt 0:01:27]} O-O {[%emt 0:02:23]} 9. O-O {[%emt 0:00:05]} Bxc3 {[%emt 0:02:46]} 10. bxc3 {[%emt 0:00:03]} Bg4 {[%emt 0:00:34]} 11. h3 {[%emt 0:06:18]} Bh5 {[%emt 0:01:09]} 12. Be2 {[%emt 0:01:20]} Ne5 {[%emt 0:07:29]} 13. Ba3 {[%emt 0:05:22]} Re8 {[%emt 0:01:09]} 14. Nxe5 {[%emt 0:00:24]} Bxe2 {[%emt 0:02:30]} 15. Qxe2 {[%emt 0:00:15]} dxe5 {[%emt 0:00:09]} 16. Rad1 {[%emt 0:00:32]} Qc8 {[%emt 0:00:18]} 17. Qc2 {[%emt 0:01:00]} c5 {[%emt 0:03:54]} 18. e4 {[%emt 0:04:04]} b6 {[%emt 0:01:06]} 19. Qe2 {[%emt 0:02:05]} Qc6 {[%emt 0:05:13]} 20. Rfe1 {[%emt 0:00:57]} Rad8 {[%emt 0:07:09]} 21. Rxd8 {[%emt 0:00:20]} Rxd8 {[%emt 0:00:16]} 22. Bc1 {[%emt 0:00:36]} h6 {[%emt 0:04:51]} 23. f4 {[%emt 0:02:36]} exf4 {[%emt 0:06:17]} 24. Bxf4 {[%emt 0:00:02]} Re8 {[%emt 0:01:24]} 25. e5 {[%emt 0:00:47]} Qe6 {[%emt 0:04:45]} 26. Kf2 {[%emt 0:00:34]} Nd7 {[%emt 0:01:49]} 27. Qg4 {[%emt 0:02:56]} Qxg4 {[%emt 0:03:11]} 28. hxg4 {[%emt 0:00:02]} Re6 {[%emt 0:02:19]} 29. Re3 {[%emt 0:04:13]} g5 {[%emt 0:02:29]} 30. Bg3 {[%emt 0:00:41]} Kg7 {[%emt 0:02:42]} 31. Kf3 {[%emt 0:02:49]} Kg6 {[%emt 0:00:29]} 32. Ke2 {[%emt 0:03:24]} h5 {[%emt 0:07:16]} 33. Kf3 {[%emt 0:04:15]} h4 {[%emt 0:00:58]} 34. Bh2 {[%emt 0:00:10]} a6 {[%emt 0:04:27]} 35. Ke2 {[%emt 0:01:40]} b5 {[%emt 0:04:31]} 36. cxb5 {[%emt 0:00:43]} axb5 {[%emt 0:00:13]} 37. Kd3 {[%emt 0:00:20]} f6 {[%emt 0:00:45]} 38. exf6 {[%emt 0:00:27]} Rxe3+ {[%emt 0:00:49]} 39. Kxe3 {[%emt 0:00:02]} Nxf6 {[%emt 0:00:22]} 40. Kf3 {[%emt 0:00:27]} Kf7 {[%emt 0:00:29]} 41. Bg1 {[%emt 0:30:39]} c4 {[%emt 0:30:42]} 42. Be3 {[%emt 0:01:11]} Nd5 {[%emt 0:11:26]} 43. Bd4 {[%emt 0:00:13]} Ke6 {[%emt 0:01:54]} 44. Ke4 {[%emt 0:03:12]} b4 {[%emt 0:01:05]} 45. cxb4 {[%emt 0:01:11]} Nxb4 {[%emt 0:03:02]} 46. a3 {[%emt 0:00:13]} Nd5 {[%emt 0:00:00]} 47. Be3 {[%emt 0:00:00]} Nc3+ {[%emt 0:00:00]} 48. Kd4 {[%emt 0:00:00]} Nb5+ {[%emt 0:00:00]} 49. Kxc4 {[%emt 0:00:00]} Nxa3+ {[%emt 0:00:00]} 50. Kd3 {[%emt 0:00:00]} Kf6 {[%emt 0:00:00]} 51. Bd4+ {[%emt 0:00:00]} Kg6 {[%emt 0:00:00]} 52. Ke4 {[%emt 0:00:00]} Nc2 {[%emt 0:00:00]} 53. Bc3 {[%emt 0:00:00]} Na3 {[%emt 0:00:00]} 54. Bd4 {[%emt 0:00:00]} Nb5 {[%emt 0:00:00]} 55. Bb2 {[%emt 0:00:00]} Nd6+ {[%emt 0:00:00]} 56. Kf3 {[%emt 0:00:00]} Nc4 {[%emt 0:00:00]} 57. Bd4 {[%emt 0:00:00]} Nd2+ {[%emt 0:00:00]} 58. Ke2 {[%emt 0:00:00]} Ne4 {[%emt 0:00:00]} 59. Kf3 {[%emt 0:00:00]} Nd2+ {[%emt 0:00:00]} 60. Ke2 {[%emt 0:00:00]} Nc4 {[%emt 0:00:00]} 61. Kf3 {[%emt 0:00:00]} Nd6 {[%emt 0:00:00]} 62. Ke2 {[%emt 0:00:00]} Ne8 {[%emt 0:00:00]} 63. Kf3 {[%emt 0:00:00]} Nc7 {[%emt 0:00:00]} 64. Ke4 {[%emt 0:00:00]} Ne6 {[%emt 0:00:00]} 65. Bb2 {[%emt 0:00:00]} Nf4 {[%emt 0:00:00]} 66. Kf3 {[%emt 0:00:00]} h3 {[%emt 0:00:00]} 67. gxh3 {[%emt 0:00:00]} Nxh3 {[%emt 0:00:00]} 68. Kg2 {[%emt 0:00:00]} Nf4+ {[%emt 0:00:00]} 69. Kf3 {[%emt 0:00:00]} Nd3 {[%emt 0:00:00]} 70. Bc3 {[%emt 0:00:00]} Nc5 {[%emt 0:00:00]} 71. Bb2 {[%emt 0:00:00]} Nd3 {[%emt 0:00:00]} 72. Bc3 {[%emt 0:00:00]} 1/2-1/2

[Event "NOR-ch Various 2019"]
[Site "Larvik"]
[Date "2019.07.11"]
[Round "7.15"]
[White "Fossan, Petter"]
[Black "Wister, Tom R"]
[Result "1-0"]
[ECO "C06"]
[WhiteElo "2295"]
[BlackElo "1849"]
[Annotator "ChessBase"]
[PlyCount "93"]
[EventDate "2019.07.06"]
[EventType "swiss"]
[EventCountry "NOR"]
[SourceTitle "playchess.com"]
[Source "ChessBase"]
[SourceQuality "1"]
[TimeControl "40/5400+30:1800+30"]

1. e4 {[%emt 0:00:00]} e6 {[%emt 0:00:00]} 2. d4 {[%emt 0:00:00]} d5 {[%emt 0:00:00]} 3. Nd2 {[%emt 0:00:00]} Nf6 {[%emt 0:00:00]} 4. e5 {[%emt 0:00:00]} Nfd7 {[%emt 0:00:06]} 5. c3 {[%emt 0:00:00]} c5 {[%emt 0:00:06]} 6. Bd3 {[%emt 0:00:00]} Nc6 {[%emt 0:00:10]} 7. Ne2 {[%emt 0:00:03]} Qb6 {[%emt 0:00:27]} 8. Nf3 {[%emt 0:00:07]} cxd4 {[%emt 0:00:22]} 9. cxd4 {[%emt 0:00:07]} f6 {[%emt 0:00:51]} 10. exf6 {[%emt 0:00:10]} Nxf6 {[%emt 0:00:08]} 11. O-O {[%emt 0:00:13]} Bd6 {[%emt 0:00:15]} 12. Bf4 {[%emt 0:05:24]} Qc7 {[%emt 0:01:06]} 13. Bxd6 {[%emt 0:04:27]} Qxd6 {[%emt 0:00:07]} 14. Ng3 {[%emt 0:04:59]} O-O {[%emt 0:02:25]} 15. Re1 {[%emt 0:03:30]} Bd7 {[%emt 0:00:51]} 16. Rc1 {[%emt 0:05:56]} Rae8 {[%emt 0:01:58]} 17. Qe2 {[%emt 0:03:59]} Qf4 {[%emt 0:04:42]} 18. Rcd1 {[%emt 0:03:45]} Re7 {[%emt 0:02:32]} 19. Bb5 {[%emt 0:02:55]} Ng4 {[%emt 0:03:51]} 20. h3 {[%emt 0:05:13]} Nh6 {[%emt 0:00:24]} 21. Bxc6 {[%emt 0:02:19]} Bxc6 {[%emt 0:02:47]} 22. Qd2 {[%emt 0:04:26]} Qd6 {[%emt 0:08:05]} 23. Re3 {[%emt 0:07:04]} Nf5 {[%emt 0:01:24]} 24. Nxf5 {[%emt 0:00:09]} exf5 {[%emt 0:00:23]} 25. Re5 {[%emt 0:00:43]} Rxe5 {[%emt 0:04:19]} 26. dxe5 {[%emt 0:00:40]} Qg6 {[%emt 0:01:04]} 27. Qf4 {[%emt 0:02:15]} h6 {[%emt 0:08:19]} 28. Nd4 {[%emt 0:02:13]} Qg5 {[%emt 0:00:49]} 29. Qxg5 {[%emt 0:03:44]} hxg5 {[%emt 0:00:10]} 30. Rc1 {[%emt 0:00:05]} Re8 {[%emt 0:03:35]} 31. e6 {[%emt 0:00:50]} g6 {[%emt 0:06:55]} 32. Nxc6 {[%emt 0:03:11]} bxc6 {[%emt 0:00:07]} 33. Rxc6 {[%emt 0:00:04]} Kg7 {[%emt 0:04:34]} 34. Kf1 {[%emt 0:01:16]} Kf6 {[%emt 0:01:10]} 35. Ke2 {[%emt 0:00:10]} Re7 {[%emt 0:00:42]} 36. Kd3 {[%emt 0:01:28]} Ke5 {[%emt 0:04:44]} 37. f3 {[%emt 0:04:58]} f4 {[%emt 0:02:12]} 38. b4 {[%emt 0:01:33]} Rb7 {[%emt 0:04:48]} 39. a3 {[%emt 0:02:14]} Re7 {[%emt 0:09:23]} 40. b5 {[%emt 0:00:37]} Rb7 {[%emt 0:01:29]} 41. a4 {[%emt 0:30:17]} Re7 {[%emt 0:30:21]} 42. a5 {[%emt 0:00:32]} Rb7 {[%emt 0:00:41]} 43. b6 {[%emt 0:00:43]} axb6 {[%emt 0:00:18]} 44. axb6 {[%emt 0:00:49]} Re7 {[%emt 0:08:46]} 45. Kc3 {[%emt 0:01:02]} Rb7 {[%emt 0:00:18]} 46. Kd3 {[%emt 0:00:16]} Re7 {[%emt 0:00:01]} 47. Rc1 {[%emt 0:00:24]} 1-0

[Event "NOR-ch Various 2019"]
[Site "Larvik"]
[Date "2019.07.11"]
[Round "7.16"]
[White "Odde, Eilif"]
[Black "Gyldenas, Ole Jorn"]
[Result "1/2-1/2"]
[ECO "D55"]
[WhiteElo "1969"]
[BlackElo "1957"]
[Annotator "NA"]
[PlyCount "66"]
[EventDate "2019.07.06"]
[EventType "swiss"]
[EventCountry "NOR"]
[SourceTitle "playchess.com"]
[Source "ChessBase"]
[SourceQuality "1"]
[TimeControl "40/5400+30:1800+30"]

1. Nf3 {[%emt 0:00:00]} d5 {[%emt 0:00:00]} 2. d4 {[%emt 0:00:00]} Nf6 {[%emt 0:00:12]} 3. c4 {[%emt 0:00:00]} e6 {[%emt 0:00:20]} 4. Nc3 {[%emt 0:00:03]} Be7 {[%emt 0:00:56]} 5. Bg5 {[%emt 0:00:38]} O-O {[%emt 0:00:29]} 6. e3 {[%emt 0:00:06]} c5 {[%emt 0:02:47]} 7. dxc5 {[%emt 0:02:31]} Bxc5 {[%emt 0:02:11]} 8. cxd5 {[%emt 0:00:39]} exd5 {[%emt 0:00:30]} 9. Bxf6 {[%emt 0:02:01]} Qxf6 {[%emt 0:00:38]} 10. Qxd5 {[%emt 0:01:46]} Bb4 {[%emt 0:04:38]} 11. Qd4 {[%emt 0:03:21]} Qe7 {[%emt 0:01:55]} 12. Be2 {[%emt 0:08:51]} Nc6 {[%emt 0:06:55]} 13. Qh4 {[%emt 0:03:52]} Bxc3+ {[%emt 0:10:03]} 14. bxc3 {[%emt 0:00:24]} Qa3 {[%emt 0:00:37]} 15. O-O {[%emt 0:05:18]} Qxc3 {[%emt 0:01:16]} 16. Rac1 {[%emt 0:00:50]} Qa3 {[%emt 0:04:08]} 17. g4 {[%emt 0:18:35]} Qe7 {[%emt 0:15:51]} 18. Qh5 {[%emt 0:04:27]} Be6 {[%emt 0:02:56]} 19. Ng5 {[%emt 0:07:58]} h6 {[%emt 0:00:33]} 20. Nh3 {[%emt 0:03:51]} Rfd8 {[%emt 0:05:25]} 21. Bf3 {[%emt 0:08:28]} Bxa2 {[%emt 0:14:37]} 22. Bxc6 {[%emt 0:02:19]} bxc6 {[%emt 0:01:19]} 23. Nf4 {[%emt 0:03:41]} Bd5 {[%emt 0:01:33]} 24. Qf5 {[%emt 0:01:56]} a5 {[%emt 0:03:19]} 25. Rfd1 {[%emt 0:01:40]} Qe4 {[%emt 0:03:50]} 26. Qxe4 {[%emt 0:00:20]} Bxe4 {[%emt 0:00:08]} 27. Rxd8+ {[%emt 0:02:31]} Rxd8 {[%emt 0:00:08]} 28. Ne2 {[%emt 0:00:32]} c5 {[%emt 0:05:52]} 29. Nc3 {[%emt 0:01:47]} Bf3 {[%emt 0:01:15]} 30. h3 {[%emt 0:00:17]} c4 {[%emt 0:01:16]} 31. Kh2 {[%emt 0:00:45]} Rd2 {[%emt 0:03:40]} 32. Kg3 {[%emt 0:00:07]} Bc6 {[%emt 0:01:17]} 33. Nb1 {[%emt 0:01:18]} Rb2 {[%emt 0:00:55]} 1/2-1/2

[Event "NOR-ch Various 2019"]
[Site "Larvik"]
[Date "2019.07.11"]
[Round "7.17"]
[White "Kjaras, Alf Marius"]
[Black "Heier, Odin Nikolai"]
[Result "1-0"]
[ECO "D00"]
[WhiteElo "1860"]
[BlackElo "1863"]
[Annotator "NA"]
[PlyCount "119"]
[EventDate "2019.07.06"]
[EventType "swiss"]
[EventCountry "NOR"]
[SourceTitle "playchess.com"]
[Source "ChessBase"]
[SourceQuality "1"]
[TimeControl "40/5400+30:1800+30"]

1. d4 {[%emt 0:00:00]} d5 {[%emt 0:00:00]} 2. Bf4 {[%emt 0:00:00]} Nf6 {[%emt 0:00:00]} 3. e3 {[%emt 0:00:00]} c5 {[%emt 0:00:08]} 4. Nc3 {[%emt 0:03:17]} a6 {[%emt 0:06:32]} 5. Nf3 {[%emt 0:03:03]} Nc6 {[%emt 0:02:06]} 6. a3 {[%emt 0:01:50]} cxd4 {[%emt 0:19:17]} 7. Nxd4 {[%emt 0:06:28]} Bg4 {[%emt 0:06:35]} 8. f3 {[%emt 0:04:50]} Bh5 {[%emt 0:04:57]} 9. h4 {[%emt 0:09:50]} Bg6 {[%emt 0:04:52]} 10. g4 {[%emt 0:04:10]} h6 {[%emt 0:02:55]} 11. Bd3 {[%emt 0:19:07]} Bxd3 {[%emt 0:08:30]} 12. Qxd3 {[%emt 0:00:11]} e6 {[%emt 0:02:17]} 13. O-O-O {[%emt 0:02:20]} Nxd4 {[%emt 0:14:04]} 14. exd4 {[%emt 0:00:54]} g6 {[%emt 0:11:42]} 15. Be5 {[%emt 0:11:47]} Rg8 {[%emt 0:00:48]} 16. Rde1 {[%emt 0:03:04]} Be7 {[%emt 0:03:27]} 17. Qe3 {[%emt 0:09:19]} h5 {[%emt 0:07:31]} 18. g5 {[%emt 0:04:27]} Nh7 {[%emt 0:00:30]} 19. Kb1 {[%emt 0:04:30]} Qd7 {[%emt 0:02:13]} 20. Bg3 {[%emt 0:03:45]} Rc8 {[%emt 0:00:38]} 21. Rh2 {[%emt 0:03:07]} Qc6 {[%emt 0:00:30]} 22. Na2 {[%emt 0:00:44]} a5 {[%emt 0:00:42]} 23. Rhe2 {[%emt 0:01:21]} Nf8 {[%emt 0:00:27]} 24. Qb3 {[%emt 0:01:09]} Nd7 {[%emt 0:00:20]} 25. Nc3 {[%emt 0:00:32]} Nb6 {[%emt 0:00:25]} 26. Nb5 {[%emt 0:01:20]} a4 {[%emt 0:01:10]} 27. Qd3 {[%emt 0:00:25]} Qc4 {[%emt 0:00:10]} 28. Qxc4 {[%emt 0:00:52]} dxc4 {[%emt 0:00:32]} 29. Nc3 {[%emt 0:00:46]} Kf8 {[%emt 0:00:38]} 30. d5 {[%emt 0:00:28]} Kg7 {[%emt 0:00:25]} 31. dxe6 {[%emt 0:00:19]} fxe6 {[%emt 0:00:12]} 32. Rxe6 {[%emt 0:00:14]} Bc5 {[%emt 0:00:23]} 33. Be5+ {[%emt 0:00:18]} Kh7 {[%emt 0:00:27]} 34. Ne4 {[%emt 0:00:38]} Nd5 {[%emt 0:00:56]} 35. Nxc5 {[%emt 0:01:38]} Rxc5 {[%emt 0:00:06]} 36. Bd4 {[%emt 0:00:21]} Rc7 {[%emt 0:00:11]} 37. Rd6 {[%emt 0:00:32]} Nf4 {[%emt 0:00:57]} 38. Rd1 {[%emt 0:00:48]} Rf7 {[%emt 0:00:39]} 39. Bf6 {[%emt 0:00:15]} Rgf8 {[%emt 0:00:38]} 40. Rd7 {[%emt 0:00:14]} Kg8 {[%emt 0:00:28]} 41. Rxf7 {[%emt 0:31:00]} Kxf7 {[%emt 0:30:37]} 42. Rd4 {[%emt 0:00:00]} Ng2 {[%emt 0:00:00]} 43. Rxc4 {[%emt 0:00:00]} b5 {[%emt 0:00:00]} 44. Rc7+ {[%emt 0:00:00]} Ke6 {[%emt 0:00:00]} 45. Re7+ {[%emt 0:00:00]} Kd6 {[%emt 0:00:00]} 46. Re2 {[%emt 0:00:00]} Nf4 {[%emt 0:00:00]} 47. Re4 {[%emt 0:00:00]} Nd5 {[%emt 0:00:00]} 48. Be5+ {[%emt 0:00:00]} Kd7 {[%emt 0:00:00]} 49. f4 {[%emt 0:00:00]} Ne7 {[%emt 0:00:00]} 50. Rd4+ {[%emt 0:00:00]} Ke6 {[%emt 0:00:00]} 51. Rd6+ {[%emt 0:00:00]} Kf7 {[%emt 0:00:00]} 52. Rf6+ {[%emt 0:00:00]} Ke8 {[%emt 0:00:00]} 53. Rxf8+ {[%emt 0:00:00]} Kxf8 {[%emt 0:00:00]} 54. Bd6 {[%emt 0:00:00]} Kf7 {[%emt 0:00:00]} 55. Bxe7 {[%emt 0:00:00]} Kxe7 {[%emt 0:00:00]} 56. Kc1 {[%emt 0:00:00]} Ke6 {[%emt 0:00:00]} 57. Kd2 {[%emt 0:00:00]} Kf5 {[%emt 0:00:00]} 58. Ke3 {[%emt 0:00:00]} Kg4 {[%emt 0:00:00]} 59. Ke4 {[%emt 0:00:00]} Kxh4 {[%emt 0:00:00]} 60. Kf3 {[%emt 0:00:00]} 1-0

[Event "NOR-ch Various 2019"]
[Site "Larvik"]
[Date "2019.07.11"]
[Round "7.18"]
[White "Nielsen, Andre"]
[Black "Bruaset, Eivind"]
[Result "0-1"]
[ECO "B97"]
[WhiteElo "2229"]
[BlackElo "2074"]
[Annotator "NA"]
[PlyCount "94"]
[EventDate "2019.07.06"]
[EventType "swiss"]
[EventCountry "NOR"]
[SourceTitle "playchess.com"]
[Source "ChessBase"]
[SourceQuality "1"]
[TimeControl "40/5400+30:1800+30"]

1. e4 {[%emt 0:00:00]} c5 {[%emt 0:00:00]} 2. Nf3 {[%emt 0:00:00]} d6 {[%emt 0:00:00]} 3. d4 {[%emt 0:00:00]} cxd4 {[%emt 0:00:00]} 4. Nxd4 {[%emt 0:00:07]} Nf6 {[%emt 0:00:00]} 5. Nc3 {[%emt 0:00:10]} a6 {[%emt 0:00:00]} 6. Bg5 {[%emt 0:03:40]} e6 {[%emt 0:00:28]} 7. f4 {[%emt 0:00:20]} Qb6 {[%emt 0:00:07]} 8. a3 {[%emt 0:01:50]} Be7 {[%emt 0:04:07]} 9. e5 {[%emt 0:01:16]} Ng8 {[%emt 0:04:36]} 10. Bxe7 {[%emt 0:01:59]} Nxe7 {[%emt 0:01:06]} 11. Qd2 {[%emt 0:12:08]} Ng6 {[%emt 0:04:44]} 12. O-O-O {[%emt 0:05:55]} dxe5 {[%emt 0:04:28]} 13. fxe5 {[%emt 0:00:14]} Nd7 {[%emt 0:01:46]} 14. Nf3 {[%emt 0:08:46]} O-O {[%emt 0:07:27]} 15. Qg5 {[%emt 0:14:42]} Qc7 {[%emt 0:00:59]} 16. Qg3 {[%emt 0:08:52]} Ndxe5 {[%emt 0:10:37]} 17. Ne4 {[%emt 0:07:21]} f6 {[%emt 0:03:47]} 18. h4 {[%emt 0:05:06]} f5 {[%emt 0:15:47]} 19. Nd6 {[%emt 0:02:16]} Rd8 {[%emt 0:00:58]} 20. h5 {[%emt 0:02:27]} Rxd6 {[%emt 0:00:49]} 21. hxg6 {[%emt 0:00:38]} Rxd1+ {[%emt 0:00:35]} 22. Kxd1 {[%emt 0:00:07]} Qd8+ {[%emt 0:00:30]} 23. Kc1 {[%emt 0:02:18]} Nxg6 {[%emt 0:00:15]} 24. Ng5 {[%emt 0:06:08]} Nf8 {[%emt 0:06:43]} 25. Bc4 {[%emt 0:01:55]} Qf6 {[%emt 0:01:16]} 26. Rd1 {[%emt 0:02:26]} b5 {[%emt 0:03:07]} 27. Bb3 {[%emt 0:01:10]} h6 {[%emt 0:00:37]} 28. Nf3 {[%emt 0:00:27]} Bb7 {[%emt 0:00:30]} 29. Nd4 {[%emt 0:03:48]} Rd8 {[%emt 0:03:52]} 30. Nxe6 {[%emt 0:01:33]} Rxd1+ {[%emt 0:01:27]} 31. Kxd1 {[%emt 0:00:07]} Nxe6 {[%emt 0:00:20]} 32. Qb8+ {[%emt 0:00:18]} Kh7 {[%emt 0:00:27]} 33. Bxe6 {[%emt 0:01:27]} Bf3+ {[%emt 0:07:07]} 34. gxf3 {[%emt 0:02:41]} Qxe6 {[%emt 0:00:03]} 35. Qf4 {[%emt 0:00:28]} g5 {[%emt 0:00:32]} 36. Qc7+ {[%emt 0:00:43]} Kg6 {[%emt 0:00:08]} 37. b3 {[%emt 0:00:33]} h5 {[%emt 0:00:58]} 38. Qd8 {[%emt 0:00:23]} g4 {[%emt 0:00:27]} 39. f4 {[%emt 0:00:22]} h4 {[%emt 0:01:49]} 40. Qg5+ {[%emt 0:01:47]} Kf7 {[%emt 0:00:11]} 41. Qh5+ {[%emt 0:30:25]} Qg6 {[%emt 0:30:18]} 42. Qxh4 {[%emt 0:00:14]} g3 {[%emt 0:02:31]} 43. Qd8 {[%emt 0:01:57]} Qg4+ {[%emt 0:01:13]} 44. Ke1 {[%emt 0:00:14]} Qxf4 {[%emt 0:00:12]} 45. Qd7+ {[%emt 0:00:33]} Kg6 {[%emt 0:00:53]} 46. Qe6+ {[%emt 0:00:50]} Kg5 {[%emt 0:01:31]} 47. Qe7+ {[%emt 0:01:32]} Kg4 {[%emt 0:00:18]} 0-1

[Event "NOR-ch Various 2019"]
[Site "Larvik"]
[Date "2019.07.11"]
[Round "7.19"]
[White "Sjoberg, Isak"]
[Black "Nordquelle, Daniel"]
[Result "1-0"]
[ECO "B53"]
[WhiteElo "2182"]
[BlackElo "2181"]
[Annotator "NA"]
[PlyCount "45"]
[EventDate "2019.07.06"]
[EventType "swiss"]
[EventCountry "NOR"]
[SourceTitle "playchess.com"]
[Source "ChessBase"]
[SourceQuality "1"]
[TimeControl "40/5400+30:1800+30"]

1. e4 {[%emt 0:00:00]} c5 {[%emt 0:00:00]} 2. Nf3 {[%emt 0:00:00]} d6 {[%emt 0:00:00]} 3. d4 {[%emt 0:00:43]} Nf6 {[%emt 0:00:00]} 4. Nc3 {[%emt 0:00:30]} cxd4 {[%emt 0:00:00]} 5. Qxd4 {[%emt 0:01:16]} a6 {[%emt 0:00:11]} 6. e5 {[%emt 0:00:54]} Nc6 {[%emt 0:00:06]} 7. Qa4 {[%emt 0:00:16]} Ng4 {[%emt 0:02:39]} 8. Bb5 {[%emt 0:05:29]} Ngxe5 {[%emt 0:00:44]} 9. Nxe5 {[%emt 0:02:00]} dxe5 {[%emt 0:00:07]} 10. Bxc6+ {[%emt 0:02:46]} bxc6 {[%emt 0:00:07]} 11. Qxc6+ {[%emt 0:00:37]} Bd7 {[%emt 0:00:06]} 12. Qe4 {[%emt 0:01:13]} f6 {[%emt 0:00:05]} 13. Be3 {[%emt 0:10:43]} Rb8 {[%emt 0:01:27]} 14. O-O-O {[%emt 0:05:17]} e6 {[%emt 0:01:15]} 15. Qc4 {[%emt 0:19:37]} Qa5 {[%emt 0:04:39]} 16. Rxd7 {[%emt 0:02:52]} Kxd7 {[%emt 0:00:21]} 17. Rd1+ {[%emt 0:00:09]} Ke7 {[%emt 0:33:59]} 18. Bc5+ {[%emt 0:00:16]} Kf7 {[%emt 0:00:06]} 19. Rd7+ {[%emt 0:00:07]} Kg6 {[%emt 0:00:04]} 20. Qg4+ {[%emt 0:00:30]} Kh6 {[%emt 0:00:05]} 21. Bxf8 {[%emt 0:00:43]} Rbxf8 {[%emt 0:04:32]} 22. Qxg7+ {[%emt 0:00:06]} Kh5 {[%emt 0:00:09]} 23. Rd3 {[%emt 0:00:04]} 1-0

[Event "NOR-ch Various 2019"]
[Site "Larvik"]
[Date "2019.07.11"]
[Round "7.20"]
[White "Melaa, Sondre"]
[Black "Opseth, Oliver"]
[Result "1-0"]
[ECO "E65"]
[WhiteElo "2118"]
[BlackElo "1714"]
[Annotator "ChessBase"]
[PlyCount "109"]
[EventDate "2019.07.06"]
[EventType "swiss"]
[EventCountry "NOR"]
[SourceTitle "playchess.com"]
[Source "ChessBase"]
[SourceQuality "1"]
[TimeControl "40/5400+30:1800+30"]

1. d4 {[%emt 0:00:53]} Nf6 {[%emt 0:00:00]} 2. c4 {[%emt 0:00:34]} g6 {[%emt 0:00:00]} 3. g3 {[%emt 0:00:09]} Bg7 {[%emt 0:00:08]} 4. Bg2 {[%emt 0:00:09]} O-O {[%emt 0:00:48]} 5. Nc3 {[%emt 0:00:22]} d6 {[%emt 0:00:37]} 6. Nf3 {[%emt 0:00:08]} Nbd7 {[%emt 0:00:45]} 7. O-O {[%emt 0:00:32]} c5 {[%emt 0:02:11]} 8. d5 {[%emt 0:00:06]} Rb8 {[%emt 0:08:24]} 9. Nd2 {[%emt 0:05:33]} a6 {[%emt 0:01:12]} 10. a4 {[%emt 0:00:34]} Qa5 {[%emt 0:03:02]} 11. Qc2 {[%emt 0:03:00]} Ne5 {[%emt 0:01:51]} 12. f4 {[%emt 0:18:37]} Neg4 {[%emt 0:03:36]} 13. Nb3 {[%emt 0:01:06]} Qd8 {[%emt 0:00:41]} 14. h3 {[%emt 0:02:28]} Nh6 {[%emt 0:00:44]} 15. g4 {[%emt 0:04:24]} Ne8 {[%emt 0:08:12]} 16. e4 {[%emt 0:02:00]} f5 {[%emt 0:03:38]} 17. exf5 {[%emt 0:00:38]} gxf5 {[%emt 0:00:49]} 18. g5 {[%emt 0:00:14]} Nf7 {[%emt 0:00:09]} 19. Bd2 {[%emt 0:05:09]} Nc7 {[%emt 0:09:50]} 20. a5 {[%emt 0:04:20]} e5 {[%emt 0:03:14]} 21. dxe6 {[%emt 0:04:30]} Bxe6 {[%emt 0:02:24]} 22. Nd5 {[%emt 0:00:28]} Bxd5 {[%emt 0:03:34]} 23. Bxd5 {[%emt 0:05:55]} Nxd5 {[%emt 0:00:27]} 24. cxd5 {[%emt 0:00:07]} Qd7 {[%emt 0:01:19]} 25. Bc3 {[%emt 0:01:48]} Nh8 {[%emt 0:00:48]} 26. Nd2 {[%emt 0:02:50]} Ng6 {[%emt 0:01:32]} 27. Nc4 {[%emt 0:02:09]} Rbe8 {[%emt 0:01:42]} 28. Qd3 {[%emt 0:07:57]} Re4 {[%emt 0:02:55]} 29. Bxg7 {[%emt 0:08:15]} Kxg7 {[%emt 0:00:16]} 30. Nb6 {[%emt 0:10:45]} Qe7 {[%emt 0:01:27]} 31. Qg3 {[%emt 0:01:46]} Re8 {[%emt 0:04:25]} 32. Rf3 {[%emt 0:04:30]} Kg8 {[%emt 0:04:25]} 33. Raf1 {[%emt 0:00:18]} Qg7 {[%emt 0:01:00]} 34. R1f2 {[%emt 0:01:22]} Re1+ {[%emt 0:01:17]} 35. Kg2 {[%emt 0:00:47]} R1e2 {[%emt 0:09:34]} 36. Nc4 {[%emt 0:02:00]} Rxf2+ {[%emt 0:01:49]} 37. Qxf2 {[%emt 0:00:25]} Qd7 {[%emt 0:01:24]} 38. Re3 {[%emt 0:00:44]} Rxe3 {[%emt 0:01:14]} 39. Qxe3 {[%emt 0:00:43]} Qe7 {[%emt 0:02:43]} 40. Qxe7 {[%emt 0:00:50]} Nxe7 {[%emt 0:00:02]} 41. Nxd6 {[%emt 0:02:40]} Nxd5 {[%emt 0:00:12]} 42. Kf3 {[%emt 0:13:05]} b6 {[%emt 0:04:34]} 43. Nxf5 {[%emt 0:00:41]} bxa5 {[%emt 0:00:41]} 44. Ke4 {[%emt 0:00:50]} Nb6 {[%emt 0:00:05]} 45. Nd6 {[%emt 0:01:29]} a4 {[%emt 0:00:45]} 46. h4 {[%emt 0:01:27]} Kg7 {[%emt 0:01:29]} 47. f5 {[%emt 0:01:17]} c4 {[%emt 0:00:20]} 48. Kd4 {[%emt 0:01:44]} c3 {[%emt 0:00:38]} 49. Kxc3 {[%emt 0:00:30]} Nd5+ {[%emt 0:00:05]} 50. Kd4 {[%emt 0:00:23]} Nf4 {[%emt 0:00:06]} 51. Ke4 {[%emt 0:01:44]} Ne2 {[%emt 0:00:44]} 52. Ke5 {[%emt 0:00:29]} Nc1 {[%emt 0:01:12]} 53. Ke6 {[%emt 0:00:26]} Nd3 {[%emt 0:00:22]} 54. Ke7 {[%emt 0:00:19]} Nxb2 {[%emt 0:00:22]} 55. f6+ {[%emt 0:00:09]} 1-0